[Event "Shropshire Chess Congress 2019"]
[Site "Telford"]
[Date "2019.01.05"]
[Round "2"]
[White "Hilton, Tim"]
[Black "Hynes, Anthony M"]
[Result "0-1"]
[ECO "A27"]
[WhiteElo "1781"]
[BlackElo "2093"]
[Annotator "NA"]
[PlyCount "82"]
[EventDate "2019.01.04"]
[EventType "swiss"]
[EventCountry "GBR"]
[SourceTitle "playchess.com"]
[Source "ChessBase"]
[SourceQuality "1"]
[TimeControl "5400+30"]

1. c4 {[%emt 0:00:31]} e5 {[%emt 0:00:00]} 2. Nc3 {[%emt 0:00:23]} Nc6 {[%emt 0:00:00]} 3. Nf3 {[%emt 0:00:19]} g6 {[%emt 0:03:43]} 4. e3 {[%emt 0:00:17]} Bg7 {[%emt 0:01:13]} 5. Be2 {[%emt 0:00:30] LiveBook: 4 Games} Nge7 {[%emt 0:00:46]} 6. d4 {[%emt 0:00:21]} d6 {[%emt 0:00:18]} 7. O-O {[%emt 0:00:31]} O-O {[%emt 0:00:11]} 8. a3 {[%emt 0:01:56]} Re8 {[%emt 0:03:57]} (8... exd4 $11 9. exd4 Bg4) 9. d5 {[%emt 0:02:51]} Nb8 $1 {[%emt 0:00:10]} 10. b4 {[%emt 0:01:33]} e4 {[%emt 0:00:41]} 11. Nd4 {[%emt 0:00:34]} Nf5 {[%emt 0:00:19]} 12. Bb2 $11 {[%emt 0:04:05]} Nxd4 {[%emt 0:03:09]} 13. exd4 {[%emt 0:00:05]} Qf6 {[%emt 0:01:21]} 14. Na4 {[%emt 0:01:22]} Nd7 {[%emt 0:04:00]} 15. Qb3 {[%emt 0:06:21]} Qe7 {[%emt 0:00:38]} 16. c5 {[%emt 0:02:54]} Nf6 {[%emt 0:04:00]} 17. b5 {[%emt 0:10:31]} Bf5 {[%emt 0:05:24]} 18. b6 {[%emt 0:05:36]} cxb6 {[%emt 0:10:56]} 19. cxb6 {[%emt 0:00:42]} a6 {[%emt 0:00:20]} 20. Rac1 {[%emt 0:06:44]} Rac8 {[%emt 0:00:11]} 21. Rxc8 {[%emt 0:01:30]} Rxc8 {[%emt 0:00:03]} 22. Rc1 {[%emt 0:00:46]} Qd7 {[%emt 0:02:16]} 23. Rxc8+ {[%emt 0:07:04]} Qxc8 {[%emt 0:00:04]} 24. Nc3 {[%emt 0:11:45]} Bh6 {[%emt 0:02:25]} 25. Nd1 {[%emt 0:03:22]} Bc1 {[%emt 0:02:20]} 26. Bc3 {[%emt 0:02:05]} Bd7 {[%emt 0:05:08]} 27. a4 {[%emt 0:03:49]} Qe8 {[%emt 0:06:58]} 28. a5 {[%emt 0:01:43]} Ba4 {[%emt 0:00:28]} 29. Qb1 {[%emt 0:00:37]} Bh6 {[%emt 0:00:55]} 30. Bc4 {[%emt 0:02:48]} Qc8 {[%emt 0:06:30]} 31. Nb2 {[%emt 0:01:45]} Bb5 {[%emt 0:00:31]} 32. Qa2 {[%emt 0:01:45]} Bxc4 {[%emt 0:00:43]} 33. Qxc4 {[%emt 0:00:58]} Qxc4 {[%emt 0:00:16]} 34. Nxc4 {[%emt 0:00:05]} Nxd5 {[%emt 0:00:14]} 35. Nxd6 {[%emt 0:00:49]} Nxc3 {[%emt 0:00:05]} 36. Nxb7 {[%emt 0:00:04]} Ne2+ {[%emt 0:00:03]} 37. Kf1 {[%emt 0:00:11]} Nxd4 {[%emt 0:00:04]} 38. Nc5 {[%emt 0:00:20]} Nc6 {[%emt 0:00:04]} 39. b7 {[%emt 0:02:07]} Nb8 {[%emt 0:02:31]} 40. Nxe4 {[%emt 0:01:07]} f5 {[%emt 0:01:39]} 41. Nd6 {[%emt 0:00:18]} Kf8 {[%emt 0:01:12]} 0-1

[Event "Shropshire Chess Congress 2019"]
[Site "Telford"]
[Date "2019.01.05"]
[Round "3"]
[White "Gonda, Laszlo"]
[Black "Merry, Alan B"]
[Result "1/2-1/2"]
[ECO "A04"]
[WhiteElo "2531"]
[BlackElo "2434"]
[Annotator "ChessBase"]
[PlyCount "79"]
[EventDate "2019.01.04"]
[EventType "swiss"]
[EventCountry "GBR"]
[SourceTitle "playchess.com"]
[Source "ChessBase"]
[SourceQuality "1"]
[TimeControl "5400+30"]

1. Nf3 {[%emt 0:00:00]} b6 {[%emt 0:00:00]} 2. g3 {[%emt 0:00:11]} Bb7 {[%emt 0:00:00]} 3. Bg2 {[%emt 0:00:04]} g6 {[%emt 0:00:00]} 4. O-O {[%emt 0:02:47]} Bg7 {[%emt 0:00:00]} 5. c4 {[%emt 0:04:36]} c5 {[%emt 0:00:05]} 6. Nc3 {[%emt 0:05:54]} Nc6 {[%emt 0:00:13]} 7. e3 {[%emt 0:00:49]} Bxc3 {[%emt 0:01:34]} 8. bxc3 {[%emt 0:00:11]} f5 {[%emt 0:02:31]} 9. e4 {[%emt 0:02:34]} fxe4 {[%emt 0:00:03]} 10. Ng5 {[%emt 0:00:04]} Nf6 {[%emt 0:00:03]} 11. Nxe4 {[%emt 0:00:44]} Nxe4 {[%emt 0:00:05]} 12. Bxe4 {[%emt 0:00:03]} Qc7 {[%emt 0:04:10]} 13. d3 {[%emt 0:01:19]} O-O-O {[%emt 0:04:56]} 14. Bf4 {[%emt 0:00:15]} d6 {[%emt 0:01:17]} 15. Qd2 {[%emt 0:01:07]} Na5 {[%emt 0:01:31]} 16. Rae1 {[%emt 0:02:05]} Rde8 {[%emt 0:00:46]} 17. Bh6 {[%emt 0:11:36]} e6 {[%emt 0:07:12]} 18. Re3 {[%emt 0:05:07]} Qd7 {[%emt 0:03:01]} 19. Rfe1 {[%emt 0:08:25]} Bxe4 {[%emt 0:02:56]} 20. Rxe4 {[%emt 0:00:21]} Nc6 {[%emt 0:00:10]} 21. Qe2 {[%emt 0:05:27]} e5 {[%emt 0:09:57]} 22. f4 {[%emt 0:02:47]} Rhg8 {[%emt 0:06:35]} 23. fxe5 {[%emt 0:07:49]} Rxe5 {[%emt 0:05:20]} 24. Bf4 {[%emt 0:03:32]} Rxe4 {[%emt 0:04:28]} 25. Qxe4 {[%emt 0:00:28]} g5 {[%emt 0:04:15]} 26. Qd5 {[%emt 0:02:31]} Re8 {[%emt 0:04:38]} 27. Rxe8+ {[%emt 0:01:18]} Qxe8 {[%emt 0:00:01]} 28. Bxg5 {[%emt 0:14:33]} Qe1+ {[%emt 0:00:24]} 29. Kg2 {[%emt 0:00:02]} Qe2+ {[%emt 0:04:54]} 30. Kh3 {[%emt 0:01:37]} Ne5 {[%emt 0:15:05]} 31. Qa8+ {[%emt 0:00:28]} Kc7 {[%emt 0:00:02]} 32. Qxa7+ {[%emt 0:00:26]} Kc8 {[%emt 0:00:45]} 33. Qa8+ {[%emt 0:01:06]} Kc7 {[%emt 0:00:01]} 34. Qa7+ {[%emt 0:07:54]} Kc8 {[%emt 0:02:18]} 35. Qa8+ {[%emt 0:00:13]} Kc7 {[%emt 0:00:11]} 36. Qe4 {[%emt 0:01:32]} Qf1+ {[%emt 0:01:54]} 37. Kh4 {[%emt 0:00:03]} Ng6+ {[%emt 0:01:11]} 38. Kg4 {[%emt 0:02:32]} Ne5+ {[%emt 0:00:56]} 39. Kh4 {[%emt 0:00:28]} Ng6+ {[%emt 0:00:16]} 40. Kh5 1/2-1/2

[Event "Shropshire Chess Congress 2019"]
[Site "Telford"]
[Date "2019.01.05"]
[Round "3"]
[White "Berczes, David"]
[Black "Ghasi, Ameet K"]
[Result "1/2-1/2"]
[ECO "E94"]
[WhiteElo "2472"]
[BlackElo "2505"]
[Annotator "ChessBase"]
[PlyCount "124"]
[EventDate "2019.01.04"]
[EventType "swiss"]
[EventCountry "GBR"]
[SourceTitle "playchess.com"]
[Source "ChessBase"]
[SourceQuality "1"]
[TimeControl "5400+30"]

1. d4 {[%emt 0:01:53]} Nf6 {[%emt 0:00:48]} 2. c4 {[%emt 0:02:19]} g6 {[%emt 0:00:17]} 3. Nc3 {[%emt 0:10:37]} Bg7 {[%emt 0:00:08]} 4. e4 {[%emt 0:00:03]} d6 {[%emt 0:00:06]} 5. Nf3 {[%emt 0:00:06]} O-O {[%emt 0:00:08]} 6. Be2 {[%emt 0:00:02]} e5 {[%emt 0:00:24]} 7. O-O {[%emt 0:00:04]} Nbd7 {[%emt 0:00:12]} 8. Qc2 {[%emt 0:00:17]} c6 {[%emt 0:02:03]} 9. d5 {[%emt 0:01:09]} c5 {[%emt 0:00:15]} 10. Bg5 {[%emt 0:00:27]} h6 {[%emt 0:05:21]} 11. Bd2 {[%emt 0:01:14]} Ne8 {[%emt 0:15:33]} 12. g3 {[%emt 0:04:16]} Ndf6 {[%emt 0:03:03]} 13. Nh4 {[%emt 0:01:48]} Bh3 {[%emt 0:01:51]} 14. Rfe1 {[%emt 0:07:03]} Nh7 {[%emt 0:05:53]} 15. Rab1 {[%emt 0:31:15]} Ng5 {[%emt 0:05:14]} 16. b4 {[%emt 0:22:11]} b6 {[%emt 0:03:09]} 17. a4 {[%emt 0:04:32]} Bd7 {[%emt 0:02:18]} 18. Bf1 {[%emt 0:05:25]} Nh3+ {[%emt 0:05:42]} 19. Bxh3 {[%emt 0:00:10]} Bxh3 {[%emt 0:00:04]} 20. a5 {[%emt 0:03:05]} Nf6 {[%emt 0:08:00]} 21. bxc5 {[%emt 0:00:58]} bxc5 {[%emt 0:03:41]} 22. a6 {[%emt 0:00:20]} Nh5 {[%emt 0:00:53]} 23. Rb7 {[%emt 0:00:59]} Nf4 {[%emt 0:05:54]} 24. Reb1 {[%emt 0:01:12]} Bc8 {[%emt 0:01:54]} 25. Be1 {[%emt 0:00:33]} Bxb7 {[%emt 0:14:24]} 26. Rxb7 {[%emt 0:00:29]} Bf6 {[%emt 0:03:53]} 27. Nf3 {[%emt 0:00:28]} Qc8 {[%emt 0:01:38]} 28. Nd2 {[%emt 0:00:33]} Nh3+ {[%emt 0:02:32]} 29. Kg2 {[%emt 0:00:04]} Ng5 {[%emt 0:00:21]} 30. Nb5 {[%emt 0:00:56]} Qh3+ {[%emt 0:00:54]} 31. Kg1 {[%emt 0:00:04]} Qg4 {[%emt 0:04:15]} 32. Kg2 {[%emt 0:00:55]} Qh3+ {[%emt 0:02:02]} 33. Kg1 {[%emt 0:00:02]} Qg4 {[%emt 0:00:04]} 34. Kg2 {[%emt 0:00:02]} Qe2 {[%emt 0:00:56]} 35. Qb1 {[%emt 0:01:12]} Bd8 {[%emt 0:01:11]} 36. h4 {[%emt 0:00:39]} Nh7 {[%emt 0:00:37]} 37. Nc3 {[%emt 0:00:34]} Qh5 {[%emt 0:00:04]} 38. Nf1 {[%emt 0:00:33]} g5 {[%emt 0:01:21]} 39. Ne3 {[%emt 0:00:27]} gxh4 {[%emt 0:00:08]} 40. g4 {[%emt 0:00:20]} Qg6 {[%emt 0:00:44]} 41. f3 {[%emt 0:00:31]} h5 {[%emt 0:00:12]} 42. Kh1 {[%emt 0:00:41]} hxg4 {[%emt 0:01:03]} 43. fxg4 {[%emt 0:00:02]} Ng5 {[%emt 0:00:59]} 44. Nf5 {[%emt 0:00:46]} Nf3 {[%emt 0:00:13]} 45. Rd7 {[%emt 0:00:40]} Kh8 {[%emt 0:00:49]} 46. Bf2 {[%emt 0:00:32]} Qxg4 {[%emt 0:00:32]} 47. Qf1 {[%emt 0:00:10]} Nd2 {[%emt 0:01:09]} 48. Qg2 {[%emt 0:00:31]} Qxg2+ {[%emt 0:00:07]} 49. Kxg2 {[%emt 0:00:01]} Nxc4 {[%emt 0:00:30]} 50. Nb5 {[%emt 0:00:17]} Kg8 {[%emt 0:00:49]} 51. Nbxd6 {[%emt 0:00:38]} Nxd6 {[%emt 0:00:08]} 52. Nxd6 c4 {[%emt 0:01:00]} 53. Nxc4 {[%emt 0:00:41]} f5 {[%emt 0:00:09]} 54. Bc5 {[%emt 0:01:41]} Rf6 {[%emt 0:00:30]} 55. Nxe5 {[%emt 0:00:29]} Rxa6 {[%emt 0:00:16]} 56. Nc6 {[%emt 0:00:32]} Ra2+ {[%emt 0:01:01]} 57. Kh3 {[%emt 0:00:15]} Bg5 {[%emt 0:00:33]} 58. exf5 {[%emt 0:00:39]} Bf6 {[%emt 0:00:30]} 59. Ne7+ {[%emt 0:00:36]} Kf7 {[%emt 0:00:19]} 60. Nc6+ {[%emt 0:00:26]} Kg8 {[%emt 0:00:05]} 61. Ne7+ {[%emt 0:00:13]} Kf7 {[%emt 0:00:21]} 62. Nc6+ {[%emt 0:00:16]} Kg8 {[%emt 0:00:20]} 1/2-1/2

[Event "Shropshire Chess Congress 2019"]
[Site "Telford"]
[Date "2019.01.05"]
[Round "3"]
[White "Hebden, Mark L"]
[Black "Okhai, Shabir"]
[Result "0-1"]
[ECO "A46"]
[WhiteElo "2435"]
[BlackElo "2073"]
[Annotator "NA"]
[PlyCount "138"]
[EventDate "2019.01.04"]
[EventType "swiss"]
[EventCountry "GBR"]
[SourceTitle "playchess.com"]
[Source "ChessBase"]
[SourceQuality "1"]
[TimeControl "5400+30"]

1. d4 {[%emt 0:00:00]} Nf6 {[%emt 0:00:00]} 2. Nf3 {[%emt 0:00:00]} e6 {[%emt 0:00:00]} 3. c4 {[%emt 0:00:17]} c5 {[%emt 0:00:00]} 4. e3 {[%emt 0:00:12]} cxd4 {[%emt 0:00:14]} 5. exd4 {[%emt 0:00:06]} d5 {[%emt 0:00:12]} 6. Nc3 {[%emt 0:00:11]} Bb4 {[%emt 0:03:25]} 7. cxd5 {[%emt 0:00:12]} Nxd5 {[%emt 0:02:47]} 8. Bd2 {[%emt 0:00:19]} Nc6 {[%emt 0:03:25]} 9. Bd3 {[%emt 0:00:27]} Be7 {[%emt 0:06:47]} 10. a3 {[%emt 0:03:58]} O-O {[%emt 0:00:43]} 11. O-O {[%emt 0:00:35]} Bf6 {[%emt 0:03:13]} 12. Be3 {[%emt 0:05:43]} Nce7 {[%emt 0:06:17]} 13. Qc2 {[%emt 0:04:47]} Nf5 {[%emt 0:02:45]} 14. Rae1 {[%emt 0:01:58]} g6 {[%emt 0:04:04]} 15. Bxf5 {[%emt 0:04:01]} Nxe3 {[%emt 0:03:28]} 16. Rxe3 {[%emt 0:00:20]} exf5 {[%emt 0:01:02]} 17. Rd1 {[%emt 0:00:12]} f4 {[%emt 0:01:35]} 18. Ree1 {[%emt 0:00:14]} Bg4 {[%emt 0:01:10]} 19. Qe4 {[%emt 0:00:37]} Re8 {[%emt 0:06:09]} 20. Qxb7 {[%emt 0:00:56]} Rxe1+ {[%emt 0:00:51]} 21. Rxe1 {[%emt 0:00:14]} Rb8 {[%emt 0:02:29]} 22. Qd5 {[%emt 0:06:52]} Bxf3 {[%emt 0:05:38]} 23. gxf3 {[%emt 0:00:45]} Bxd4 {[%emt 0:05:00]} 24. Qxd8+ {[%emt 0:01:09]} Rxd8 {[%emt 0:00:07]} 25. Rd1 {[%emt 0:00:13]} Bf6 {[%emt 0:04:45]} 26. Rxd8+ {[%emt 0:00:38]} Bxd8 {[%emt 0:00:02]} 27. Nd5 {[%emt 0:00:17]} g5 {[%emt 0:01:13]} 28. Kf1 {[%emt 0:01:02]} Kg7 {[%emt 0:06:24]} 29. Ke2 {[%emt 0:00:35]} Kg6 {[%emt 0:00:08]} 30. b4 {[%emt 0:02:46]} Kh5 {[%emt 0:02:36]} 31. a4 {[%emt 0:00:57]} Kh4 {[%emt 0:00:40]} 32. a5 {[%emt 0:00:21]} Kh3 {[%emt 0:02:31]} 33. a6 {[%emt 0:00:21]} Kxh2 {[%emt 0:00:49]} 34. b5 {[%emt 0:02:38]} Kg2 {[%emt 0:01:09]} 35. b6 {[%emt 0:03:30]} Bxb6 {[%emt 0:00:22]} 36. Nxb6 {[%emt 0:00:14]} h5 {[%emt 0:00:05]} 37. Nc8 {[%emt 0:00:50]} h4 {[%emt 0:00:05]} 38. Nxa7 {[%emt 0:00:12]} h3 {[%emt 0:00:04]} 39. Nc6 {[%emt 0:01:22]} h2 {[%emt 0:00:06]} 40. a7 h1=Q {[%emt 0:00:06]} 41. a8=Q {[%emt 0:00:13]} Qf1+ {[%emt 0:00:14]} 42. Kd2 {[%emt 0:00:04]} Qxf2+ {[%emt 0:00:06]} 43. Kc1 {[%emt 0:04:31]} Qf1+ {[%emt 0:00:42]} 44. Kd2 {[%emt 0:00:44]} Qxf3 {[%emt 0:00:11]} 45. Qe8 {[%emt 0:00:16]} Qd5+ {[%emt 0:03:23]} 46. Kc3 {[%emt 0:04:31]} f3 {[%emt 0:01:55]} 47. Nd4 {[%emt 0:00:40]} f5 {[%emt 0:08:09]} 48. Qh5 {[%emt 0:02:11]} Qc5+ {[%emt 0:00:45]} 49. Kd3 {[%emt 0:00:21]} Qa3+ {[%emt 0:01:07]} 50. Kd2 {[%emt 0:00:46]} Qa2+ {[%emt 0:01:53]} 51. Kd3 {[%emt 0:02:32]} Qb1+ {[%emt 0:01:57]} 52. Kd2 {[%emt 0:00:51]} Qa2+ {[%emt 0:01:28]} 53. Kd3 {[%emt 0:00:50]} Qa3+ {[%emt 0:00:47]} 54. Kd2 {[%emt 0:00:15]} Qa5+ {[%emt 0:04:07]} 55. Kd3 {[%emt 0:00:30]} g4 {[%emt 0:02:17]} 56. Nxf5 {[%emt 0:03:05]} Qd5+ {[%emt 0:00:59]} 57. Ke3 {[%emt 0:02:36]} Qe5+ {[%emt 0:00:26]} 58. Kd3 {[%emt 0:00:02]} Qe2+ {[%emt 0:00:19]} 59. Kd4 {[%emt 0:00:20]} f2 {[%emt 0:02:22]} 60. Ne3+ {[%emt 0:02:12]} Kg1 {[%emt 0:00:33]} 61. Qf5 {[%emt 0:07:00]} g3 {[%emt 0:02:55]} 62. Qg5 {[%emt 0:08:29]} Qf3 {[%emt 0:00:47]} 63. Kc5 {[%emt 0:06:17]} g2 {[%emt 0:00:11]} 64. Nxg2 {[%emt 0:00:18]} Qxg2 {[%emt 0:00:24]} 65. Qe3 {[%emt 0:00:12]} Qg4 {[%emt 0:00:29]} 66. Kb6 {[%emt 0:00:33]} Kg2 {[%emt 0:00:09]} 67. Qd2 {[%emt 0:00:12]} Qf5 {[%emt 0:00:16]} 68. Ka7 {[%emt 0:00:23]} Qe5 {[%emt 0:00:15]} 69. Ka8 {[%emt 0:00:33]} Kg1 {[%emt 0:00:11]} 0-1

[Event "Shropshire Chess Congress 2019"]
[Site "Telford"]
[Date "2019.01.05"]
[Round "3"]
[White "Walton, Alan J"]
[Black "Bin-Suhayl, Ieysaa"]
[Result "1/2-1/2"]
[ECO "A45"]
[WhiteElo "2149"]
[BlackElo "2095"]
[Annotator "NA"]
[PlyCount "138"]
[EventDate "2019.01.04"]
[EventType "swiss"]
[EventCountry "GBR"]
[SourceTitle "playchess.com"]
[Source "ChessBase"]
[SourceQuality "1"]
[TimeControl "5400+30"]

1. d4 {[%emt 0:00:00]} Nf6 {[%emt 0:00:00]} 2. Bg5 {[%emt 0:00:00]} e6 {[%emt 0:00:38]} 3. e4 {[%emt 0:00:03]} h6 {[%emt 0:00:36]} 4. Bxf6 {[%emt 0:00:05]} Qxf6 {[%emt 0:00:02]} 5. Nc3 {[%emt 0:00:08]} Bb4 {[%emt 0:00:57]} 6. Qd2 {[%emt 0:00:06]} d5 {[%emt 0:00:09]} 7. Bd3 {[%emt 0:02:05]} c5 {[%emt 0:00:57]} 8. a3 {[%emt 0:02:09]} Bxc3 {[%emt 0:00:09]} 9. Qxc3 {[%emt 0:03:15]} dxe4 {[%emt 0:00:27]} 10. Bxe4 {[%emt 0:01:47]} Qxd4 {[%emt 0:00:06]} 11. Qxd4 {[%emt 0:00:07]} cxd4 {[%emt 0:00:01]} 12. Nf3 {[%emt 0:00:59]} f5 {[%emt 0:00:22]} 13. Bd3 {[%emt 0:00:22]} Kf7 {[%emt 0:01:32]} 14. Nxd4 {[%emt 0:00:29]} Rd8 {[%emt 0:07:24]} 15. Nb5 {[%emt 0:02:57]} a6 {[%emt 0:01:40]} 16. Nc3 {[%emt 0:00:06]} b5 {[%emt 0:03:01]} 17. O-O-O {[%emt 0:00:49]} Bb7 {[%emt 0:00:29]} 18. f3 {[%emt 0:04:38]} Nd7 {[%emt 0:04:43]} 19. Be2 {[%emt 0:01:41]} Nb6 {[%emt 0:07:40]} 20. Rxd8 {[%emt 0:00:30]} Rxd8 {[%emt 0:06:08]} 21. Rd1 {[%emt 0:00:04]} Rxd1+ {[%emt 0:00:04]} 22. Kxd1 {[%emt 0:00:09]} e5 {[%emt 0:00:09]} 23. Kd2 {[%emt 0:00:36]} Ke6 {[%emt 0:01:05]} 24. Ke3 {[%emt 0:00:46]} g5 {[%emt 0:10:11]} 25. Bd3 {[%emt 0:06:18]} h5 {[%emt 0:01:55]} 26. h3 {[%emt 0:00:16]} h4 {[%emt 0:11:53]} 27. Kf2 {[%emt 0:02:35]} Bc8 {[%emt 0:08:38]} 28. Nd1 {[%emt 0:03:11]} Kd6 {[%emt 0:01:56]} 29. Ne3 {[%emt 0:00:09]} f4 {[%emt 0:00:11]} 30. Nf1 {[%emt 0:00:27]} Na4 {[%emt 0:14:55]} 31. b3 {[%emt 0:00:11]} Nc5 {[%emt 0:02:08]} 32. Bh7 {[%emt 0:03:26]} Kd5 {[%emt 0:02:03]} 33. Nd2 {[%emt 0:00:42]} Kd4 {[%emt 0:01:21]} 34. b4 {[%emt 0:00:39]} Ne6 {[%emt 0:00:23]} 35. Bf5 {[%emt 0:01:06]} Kc3 {[%emt 0:01:39]} 36. Ne4+ {[%emt 0:00:40]} Kb2 {[%emt 0:02:06]} 37. c3 {[%emt 0:02:15]} Kxa3 {[%emt 0:02:31]} 38. Ke1 {[%emt 0:00:06]} Bd7 {[%emt 0:05:16]} 39. Nf6 {[%emt 0:00:10]} Bc8 {[%emt 0:00:14]} 40. Ne4 {[%emt 0:00:43]} Bd7 {[%emt 0:00:05]} 41. Nf6 {[%emt 0:00:54]} Bc8 {[%emt 0:00:03]} 42. Kd2 {[%emt 0:01:03]} Kb2 {[%emt 0:02:35]} 43. Ng4 {[%emt 0:04:14]} Kb3 {[%emt 0:01:05]} 44. Nxe5 {[%emt 0:01:03]} Ka4 {[%emt 0:00:20]} 45. Nd3 {[%emt 0:00:22]} Ka3 {[%emt 0:00:28]} 46. Ne5 {[%emt 0:00:27]} Ka4 {[%emt 0:00:08]} 47. Nf7 {[%emt 0:01:15]} a5 {[%emt 0:00:41]} 48. Bc2+ {[%emt 0:00:06]} Ka3 {[%emt 0:00:04]} 49. bxa5 {[%emt 0:00:40]} b4 {[%emt 0:00:28]} 50. cxb4 {[%emt 0:02:01]} Kxb4 {[%emt 0:00:04]} 51. Bf5 {[%emt 0:00:05]} Kxa5 {[%emt 0:00:33]} 52. Nxg5 {[%emt 0:01:03]} Nxg5 {[%emt 0:00:05]} 53. Bxc8 {[%emt 0:00:04]} Kb4 {[%emt 0:00:20]} 54. Kd3 {[%emt 0:00:22]} Kc5 {[%emt 0:00:05]} 55. Bb7 {[%emt 0:00:23]} Kd6 {[%emt 0:00:42]} 56. Kd4 {[%emt 0:01:05]} Ne6+ {[%emt 0:00:54]} 57. Ke4 {[%emt 0:01:13]} Nc5+ {[%emt 0:00:04]} 58. Kxf4 {[%emt 0:00:04]} Nxb7 {[%emt 0:00:04]} 59. Kg4 {[%emt 0:00:05]} Ke5 {[%emt 0:00:18]} 60. Kxh4 {[%emt 0:00:16]} Kf6 {[%emt 0:00:44]} 61. Kh5 {[%emt 0:00:14]} Nd6 {[%emt 0:00:50]} 62. g4 {[%emt 0:03:33]} Nf7 {[%emt 0:00:04]} 63. f4 {[%emt 0:00:15]} Nh8 {[%emt 0:01:07]} 64. f5 {[%emt 0:01:22]} Nf7 {[%emt 0:00:14]} 65. h4 {[%emt 0:00:06]} Ne5 {[%emt 0:00:12]} 66. g5+ {[%emt 0:00:33]} Kxf5 {[%emt 0:00:07]} 67. Kh6 {[%emt 0:00:15]} Nf7+ {[%emt 0:00:12]} 68. Kh7 {[%emt 0:00:59]} Nxg5+ {[%emt 0:00:05]} 69. hxg5 {[%emt 0:00:02]} Kxg5 {[%emt 0:00:07]} 1/2-1/2

[Event "Shropshire Chess Congress 2019"]
[Site "Telford"]
[Date "2019.01.05"]
[Round "3"]
[White "Ferrington, Nigel M"]
[Black "Ireland, David J"]
[Result "1-0"]
[ECO "A20"]
[WhiteElo "2128"]
[BlackElo "1930"]
[Annotator "NA"]
[PlyCount "99"]
[EventDate "2019.01.04"]
[EventType "swiss"]
[EventCountry "GBR"]
[SourceTitle "playchess.com"]
[Source "ChessBase"]
[SourceQuality "1"]
[TimeControl "5400+30"]

1. c4 {[%emt 0:00:00]} e5 {[%emt 0:00:00]} 2. g3 {[%emt 0:00:00]} Nc6 {[%emt 0:00:00]} 3. Nc3 {[%emt 0:00:00]} Nf6 {[%emt 0:00:34]} 4. Bg2 {[%emt 0:00:00]} g6 {[%emt 0:00:41]} 5. e4 {[%emt 0:00:35]} Bg7 {[%emt 0:00:15]} 6. Nge2 {[%emt 0:00:05]} d6 {[%emt 0:00:26]} 7. O-O {[%emt 0:00:19]} O-O {[%emt 0:00:04]} 8. d3 {[%emt 0:00:10]} Nh5 {[%emt 0:01:15]} 9. Be3 {[%emt 0:02:58]} f5 {[%emt 0:01:44]} 10. exf5 {[%emt 0:00:22]} gxf5 {[%emt 0:02:41]} 11. f4 {[%emt 0:00:45]} Nf6 {[%emt 0:02:53]} 12. Kh1 {[%emt 0:02:51]} Qe8 {[%emt 0:02:22]} 13. Qd2 {[%emt 0:02:13]} Bd7 {[%emt 0:03:00]} 14. Rae1 {[%emt 0:06:50]} Ne7 {[%emt 0:18:10]} 15. Bxb7 {[%emt 0:09:20]} Bc6+ {[%emt 0:01:28]} 16. Bxc6 {[%emt 0:00:07]} Qxc6+ {[%emt 0:00:10]} 17. Kg1 {[%emt 0:00:26]} Ng4 {[%emt 0:00:30]} 18. Rc1 {[%emt 0:14:10]} Rf7 {[%emt 0:10:06]} 19. b3 {[%emt 0:03:59]} h5 {[%emt 0:01:18]} 20. h3 {[%emt 0:05:35]} Nxe3 {[%emt 0:06:27]} 21. Qxe3 {[%emt 0:00:15]} h4 {[%emt 0:05:33]} 22. Qf3 {[%emt 0:08:58]} Qb6+ {[%emt 0:06:20]} 23. Kh1 {[%emt 0:05:22]} Raf8 {[%emt 0:00:52]} 24. gxh4 {[%emt 0:01:07]} e4 {[%emt 0:01:46]} 25. Qg3 {[%emt 0:05:38]} Kh7 {[%emt 0:08:26]} 26. Rg1 {[%emt 0:01:22]} exd3 {[%emt 0:05:45]} 27. Qxd3 {[%emt 0:01:58]} Bh6 {[%emt 0:02:40]} 28. Qf3 {[%emt 0:04:21]} Qc6 {[%emt 0:07:27]} 29. Nd5 {[%emt 0:01:58]} Nxd5 {[%emt 0:00:36]} 30. cxd5 {[%emt 0:01:06]} Qb6 {[%emt 0:01:13]} 31. Qh5 {[%emt 0:02:55]} Rf6 {[%emt 0:01:52]} 32. Rc6 {[%emt 0:01:26]} Qe3 {[%emt 0:01:21]} 33. Rxc7+ {[%emt 0:01:04]} Kh8 {[%emt 0:00:06]} 34. Rc3 {[%emt 0:06:49]} Qe4+ {[%emt 0:00:46]} 35. Qf3 {[%emt 0:00:33]} Re8 {[%emt 0:00:52]} 36. Qxe4 {[%emt 0:00:48]} Rxe4 {[%emt 0:01:24]} 37. Rc8+ {[%emt 0:01:17]} Kh7 {[%emt 0:00:12]} 38. Rc7+ {[%emt 0:03:16]} Kh8 {[%emt 0:00:03]} 39. Ng3 {[%emt 0:01:12]} Re3 {[%emt 0:00:49]} 40. Nh5 {[%emt 0:00:37]} Rf8 {[%emt 0:01:54]} 41. Rg6 {[%emt 0:00:46]} Re1+ {[%emt 0:01:12]} 42. Kg2 {[%emt 0:01:22]} Rg8 {[%emt 0:00:24]} 43. Rxg8+ {[%emt 0:00:16]} Kxg8 {[%emt 0:00:01]} 44. Rxa7 {[%emt 0:00:23]} Rd1 {[%emt 0:02:36]} 45. b4 {[%emt 0:00:16]} Rd2+ {[%emt 0:00:29]} 46. Kf3 {[%emt 0:00:50]} Rd3+ {[%emt 0:00:11]} 47. Ke2 {[%emt 0:00:24]} Rxh3 {[%emt 0:00:18]} 48. b5 {[%emt 0:00:09]} Rxh4 {[%emt 0:00:18]} 49. Nf6+ {[%emt 0:01:45]} Kf8 {[%emt 0:00:03]} 50. b6 {[%emt 0:00:48] Ke8 Ra6+} 1-0